fUST/lending_fUST_20240528
["ID","MTS","AMOUNT","RATE_DAILY","PERIOD"]
[328085596,1716842318885,154.9690062,9.999e-05,2]
[328085599,1716842954131,-190.14627615,0.00016499,2]
[328085600,1716842954154,-264.369945,0.00018029,2]
[328085601,1716842954176,-24900.0,0.00018576,2]
[328085602,1716842954200,-859.99462972,0.000188,2]
[328085603,1716842954222,-7834.09964556,0.00018899,2]
[328085604,1716842954246,-483.90656795,0.000189,2]
[328085605,1716842954267,-173.994812,0.00019178,2]
[328085606,1716842954293,-181.09942805,0.0002,2]
[328085607,1716842954315,-279.15219359,0.0002,2]
[328085608,1716842954338,-1289.50928851,0.0002,2]
[328085609,1716842954359,-8945.98830233,0.0002,2]
[328085610,1716842963100,-274.85373023,0.00018028,2]
[328085611,1716842963122,-1526.44423698,0.0002,2]
[328085612,1716842963142,-154.9690062,0.0002,2]
[328085613,1716842963162,-207.62014103,0.00020456,2]
[328085614,1716842963184,-151.0,0.00020683,3]
[328085615,1716842963209,-482.99,0.00020897,3]
[328085616,1716842963231,-1569.4348472,0.00020901,2]
[328085617,1716842963267,-195.15346613,0.00020901,2]
[328085618,1716842963295,-155.28746129,0.00020901,2]
[328085619,1716842963322,-200.5510001,0.00020901,2]
[328085620,1716842963347,-943.30319772,0.00020901,2]
[328085621,1716842963369,-1777.7714543,0.00020901,2]
[328085622,1716842963392,-685.35873137,0.00020901,2]
[328085623,1716842963414,-156.58808866,0.00020901,2]
[328085624,1716842963438,-2966.39363879,0.00020901,2]
[328085627,1716842972114,-3370.15360726,0.00020901,2]
[328085628,1716842972134,-244.04021163,0.00020902,2]
[328085629,1716842972154,-772.8946628,0.00020902,2]
[328085630,1716842972174,-309.90432913,0.00020902,2]
[328085631,1716842972195,-40.29986758,0.00020903,2]
[328085632,1716842972215,-224.73843168,0.00020903,2]
[328085633,1716842972235,-561.63283035,0.00020903,10]
[328085634,1716842972255,-227.60607916,0.00020903,2]
[328085635,1716842972276,-2091.43127022,0.00020903,2]
[328085636,1716842972300,-365.24444276,0.00020903,2]
[328085637,1716842972320,-16160.77057602,0.00020903,2]
[328085638,1716842972341,-224.93928124,0.00020903,2]
[328085639,1716842972363,-190.14627615,0.00020905,2]
[328085640,1716842972388,-575.25310714,0.00020906,2]
[328085641,1716842972409,-237.86739177,0.00020906,2]
[328085642,1716842972432,-500.0,0.00020906,2]
[328085643,1716842972455,-500.0,0.00020906,2]
[328085644,1716842972479,-575.25310714,0.00020906,2]
[328085645,1716842972501,-500.0,0.00020906,2]
[328085646,1716842972522,-628.75269464,0.00020906,2]
[328085647,1716842972544,-500.0,0.00020906,2]
[328085648,1716842972565,-500.0,0.00020906,2]
[328085649,1716842972587,-212.54031942,0.00020906,2]
[328085707,1716843032334,-256.48109456,0.0002,2]
[328085709,1716843032344,-151.0,0.0002068,3]
[328085710,1716843032354,-274.57204811,0.00020904,2]
[328085712,1716843032364,-190.05622179,0.00020904,2]
[328085714,1716843032373,-165.39857544,0.00020905,2]
[328085716,1716843032382,-727.23223265,0.00020905,2]
[328085836,1716843038109,-1792.426659,0.00020905,2]
[328085838,1716843038118,-2344.35192778,0.00020912,2]
[328085840,1716843038128,-12070.53461261,0.00020912,2]
[328085842,1716843038138,-361.76877092,0.00020912,2]
[328085844,1716843038147,-411.89281249,0.00020912,2]
[328085846,1716843038157,-273.70704404,0.00020912,2]
[328085848,1716843038167,-434.72496355,0.00020912,2]
[328085850,1716843038176,-752.43065176,0.00020912,2]
[328085852,1716843038185,-400.0,0.00020912,2]
[328085854,1716843038194,-13093.88938135,0.00020912,2]
[328085857,1716843038206,-14933.52868196,0.00020912,2]
[328085859,1716843038215,-561.99755291,0.00020912,7]
[328085861,1716843038224,-269.46544056,0.00020913,2]
[328085863,1716843038233,-500.0,0.00020913,2]
[328085865,1716843038243,-389.61374901,0.00020913,2]
[328085867,1716843038260,-110.38625099,0.00020913,2]
[328085869,1716843038269,-500.0,0.00020913,2]
[328085871,1716843038278,-500.0,0.00020913,2]
[328085873,1716843038287,-500.0,0.00020913,2]
[328085874,1716843038296,-500.0,0.00020913,2]
[328085876,1716843038309,-500.0,0.00020913,2]
[328085878,1716843038319,-251.22177641,0.00020913,2]
[328085879,1716843038328,-500.0,0.00020913,2]
[328085881,1716843038337,-500.0,0.00020913,2]
[328085882,1716843038347,-500.0,0.00020913,2]
[328085884,1716843038357,-500.0,0.00020913,2]
[328085886,1716843038366,-153.50515468,0.00020913,2]
[328085980,1716843041707,-346.49484532,0.00020913,2]
[328085981,1716843041717,-500.0,0.00020913,2]
[328085982,1716843041727,-500.0,0.00020913,2]
[328085983,1716843041736,-500.0,0.00020913,2]
[328085984,1716843041744,-500.0,0.00020913,2]
[328085985,1716843041754,-111.43570893,0.00020913,2]
[328085986,1716843041766,-388.56429107,0.00020913,2]
[328085987,1716843041775,-500.0,0.00020913,2]
[328085988,1716843041784,-500.0,0.00020913,2]
[328085989,1716843041793,-500.0,0.00020913,2]
[328085990,1716843041802,-500.0,0.00020913,2]
[328085991,1716843041811,-500.0,0.00020913,2]
[328085992,1716843041820,-500.0,0.00020913,2]
[328085993,1716843041829,-500.0,0.00020913,2]
[328085994,1716843041839,-500.0,0.00020913,2]
[328085995,1716843041848,-500.0,0.00020913,2]
[328085996,1716843041857,-500.0,0.00020913,2]
[328085997,1716843041866,-500.0,0.00020913,2]
[328085998,1716843041876,-500.0,0.00020913,2]
[328085999,1716843041885,-500.0,0.00020913,2]
[328086000,1716843041895,-500.0,0.00020913,2]
[328086001,1716843041904,-500.0,0.00020913,2]
[328086002,1716843041913,-500.0,0.00020913,2]
[328086003,1716843041924,-500.0,0.00020913,2]
[328086004,1716843041933,-500.0,0.00020913,2]
[328086005,1716843041943,-500.0,0.00020913,2]
[328086006,1716843041955,-500.0,0.00020913,2]
[328086007,1716843041964,-4116.40521523,0.00021,7]
[328086008,1716843041974,-280.0,0.00021,2]
[328086009,1716843041983,-10050.69208104,0.00021,2]
[328086010,1716843041992,-198.04759902,0.00021,2]
[328086011,1716843042001,-13559.43065952,0.00021,2]
[328086012,1716843042010,-151.0,0.00021465,3]
[328086013,1716843042018,-151.0,0.00021676,3]
[328086014,1716843042027,-1068.51352913,0.000223,2]
[328086015,1716843042036,-151.0,0.0002237,3]
[328086016,1716843042045,-4697.73031858,0.00023,2]
[328086017,1716843042054,-151.0,0.00023065,3]
[328086018,1716843042063,-500.0,0.00023287,2]
[328086019,1716843042072,-151.0,0.00023759,5]
[328086020,1716843042082,-483.90656795,0.000239,2]
[328086021,1716843042091,-828.67876932,0.00024,2]
[328086022,1716843042100,-169.218753,0.00024384,2]
[328086023,1716843042109,-618.053489,0.00024384,2]
[328086024,1716843042120,-151.0,0.00024454,5]
[328086025,1716843042129,-4228.46577223,0.00024738,2]
[328086026,1716843042138,-150.0,0.00024818,2]
[328086027,1716843042147,-9515.80346702,0.00024997,2]
[328086028,1716843042156,-3000.0,0.00024999,2]
[328086029,1716843042165,-3959.86493858,0.00025,7]
[328086030,1716843042175,-11313.09183111,0.00025,2]
[328086031,1716843042185,-456.717891,0.00025,2]
[328086032,1716843042194,-761.26183516,0.00025,2]
[328086033,1716843042203,-1842.78389165,0.00025,2]
[328086034,1716843042212,-118821.31788965,0.00025,2]
[328086035,1716843042221,-151.0,0.00025148,5]
[328086036,1716843042229,-179000.0,0.000253,2]
[328086037,1716843042238,-204.7368025,0.00025753,2]
[328086038,1716843042247,-204.7368025,0.00025753,2]
[328086039,1716843042257,-204.7368025,0.00025753,2]
[328086040,1716843042266,-204.7368025,0.00025753,2]
[328086041,1716843042275,-204.7368025,0.00025753,2]
[328086042,1716843042284,-204.7368025,0.00025753,2]
[328086043,1716843042293,-204.7368025,0.00025753,2]
[328086044,1716843042302,-204.7368025,0.00025753,2]
[328086045,1716843042317,-151.0,0.00025843,5]
[328086046,1716843042327,-4519.46086386,0.00026,2]
[328086047,1716843042336,-11167.06625316,0.00026,2]
[328086048,1716843042345,-849.50397076,0.00026008,2]
[328086049,1716843042356,-275.1448295,0.00026085,2]
[328086050,1716843042365,-457.2032223,0.00026085,2]
[328086051,1716843042374,-153.0,0.00026085,2]
[328086052,1716843042384,-345.4664948,0.00026085,2]
[328086053,1716843042393,-849.50397076,0.00026121,2]
[328086054,1716843042402,-153.0,0.00026164,2]
[328086055,1716843042412,-153.0,0.00026164,2]
[328086056,1716843042421,-153.0,0.00026164,2]
[328086057,1716843042430,-153.0,0.00026164,2]
[328086058,1716843042439,-153.0,0.00026164,2]
[328086059,1716843042449,-153.0,0.00026164,2]
[328086060,1716843042458,-153.0,0.00026164,2]
[328086061,1716843042467,-153.0,0.00026164,2]
[328086062,1716843042476,-153.0,0.00026164,2]
[328086063,1716843042486,-153.0,0.00026164,2]
[328086064,1716843042495,-153.0,0.00026164,2]
[328086065,1716843042504,-153.0,0.00026164,2]
[328086066,1716843042513,-153.0,0.00026164,2]
[328086067,1716843042522,-153.0,0.00026164,2]
[328086068,1716843042532,-398.48813171,0.00026174,2]
[328086069,1716843042541,-398.48813171,0.00026178,2]
[328086070,1716843042550,-484.15978169,0.00026226,2]
[328086071,1716843042560,-79.54134452,0.00026389,2]
[328086074,1716843042575,-312.2633,0.00026389,2]
[328086127,1716843043416,-92.35513717,0.00026389,2]
[328086129,1716843043425,-767.32639711,0.0002649,2]
[328086136,1716843043482,-746.20018376,0.0002649,2]
[328086138,1716843043493,-5945.41993956,0.0002649,2]
[328086140,1716843043502,-302.89330779,0.00026497,2]
[328086142,1716843043514,-546.61066297,0.00026497,2]
[328086144,1716843043523,-150.0,0.000265,2]
[328086146,1716843043532,-202.78133703,0.00026527,2]
[328086176,1716843044352,-195.70679468,0.00026527,2]
[328086179,1716843044363,-151.0,0.00026537,5]
[328086180,1716843044372,-204.7368025,0.00026575,2]
[328086182,1716843044382,-204.7368025,0.00026575,2]
[328086184,1716843044392,-204.7368025,0.00026575,2]
[328086186,1716843044402,-204.7368025,0.00026575,2]
[328086188,1716843044411,-204.7368025,0.00026575,2]
[328086190,1716843044421,-204.7368025,0.00026575,2]
[328086192,1716843044430,-204.7368025,0.00026575,2]
[328086194,1716843044439,-204.7368025,0.00026575,2]
[328086195,1716843044448,-204.7368025,0.00026575,2]
[328086196,1716843044458,-484.15978169,0.00026591,2]
[328086197,1716843044467,-2046.5589487,0.000266,2]
[328086198,1716843044477,-150.0,0.00026657,2]
[328086199,1716843044486,-500.0,0.00026712,2]
[328086200,1716843044495,-154.3112681,0.00026719,2]
[328086201,1716843044505,-398.48813171,0.00026783,2]
[328086202,1716843044515,-496.0,0.0002681,2]
[328086203,1716843044525,-398.48813171,0.00026866,2]
[328086204,1716843044535,-849.50397076,0.00026881,2]
[328086205,1716843044546,-800.0,0.000269,2]
[328086206,1716843044556,-849.50397076,0.00026903,2]
[328086207,1716843044566,-291.7636695,0.00026907,2]
[328086208,1716843044575,-291.7636695,0.00026907,2]
[328086209,1716843044585,-204.7368025,0.00026907,2]
[328086210,1716843044595,-291.7636695,0.00026907,2]
[328086211,1716843044605,-291.7636695,0.00026907,2]
[328086212,1716843044614,-291.7636695,0.00026907,2]
[328086213,1716843044624,-292.9127272,0.00026907,2]
[328086215,1716843044634,-398.48813171,0.00026947,2]
[328086217,1716843044643,-398.48813171,0.00026971,2]
[328086219,1716843044652,-672.94778238,0.00027,2]
[328086220,1716843044661,-148532.38705413,0.00027,15]
[328086222,1716843044671,-484.15978169,0.00027013,2]
[328086225,1716843044681,-544.3120798,0.00027041,2]
[328086226,1716843044691,-264.369945,0.00027044,2]
[328086228,1716843044700,-849.50397076,0.00027095,2]
[328086230,1716843044710,-484.15978169,0.00027106,2]
[328086232,1716843044720,-398.48813171,0.00027168,2]
[328086234,1716843044731,-398.48813171,0.00027219,2]
[328086236,1716843044740,-168.16,0.0002726,2]
[328086238,1716843044749,-484.15978169,0.00027294,2]
[328086241,1716843044761,-849.50397076,0.00027352,2]
[328086243,1716843044770,-398.48813171,0.00027359,2]
[328086244,1716843044780,-484.15978169,0.00027373,2]
[328086246,1716843044789,-484.15978169,0.00027381,2]
[328086248,1716843044798,-29687.17810587,0.00027393,2]
[328086250,1716843044808,-500.0,0.00027397,4]
[328086252,1716843044817,-500.0,0.00027397,4]
[328086254,1716843044826,-500.0,0.00027397,4]
[328086257,1716843044835,-500.0,0.00027397,4]
[328086259,1716843044843,-230.87815314,0.00027397,4]
[328086261,1716843044852,-500.0,0.00027397,4]
[328086263,1716843044861,-500.0,0.00027397,4]
[328086265,1716843044870,-501.4714845,0.00027397,4]
[328086267,1716843044879,-500.0,0.00027397,4]
[328086269,1716843044888,-500.0,0.00027397,4]
[328086271,1716843044898,-500.0,0.00027397,4]
[328086272,1716843044907,-500.0,0.00027397,4]
[328086274,1716843044917,-500.0,0.00027397,4]
[328086276,1716843044926,-500.0,0.00027397,4]
[328086278,1716843044935,-500.0,0.00027397,4]
[328086299,1716843044944,-501.54611887,0.00027397,4]
[328086301,1716843045130,-500.0,0.00027397,4]
[328086303,1716843045140,-500.0,0.00027397,4]
[328086305,1716843045149,-500.0,0.00027397,4]
[328086307,1716843045159,-616.09476464,0.00027397,4]
[328086309,1716843045169,-357.61629155,0.00027397,4]
[328086311,1716843045179,-500.0,0.00027397,4]
[328086313,1716843045189,-182.14481385,0.00027397,4]
[328086315,1716843045198,-500.0,0.00027397,4]
[328086317,1716843045209,-500.0,0.00027397,4]
[328086319,1716843045218,-500.0,0.00027397,4]
[328086321,1716843045228,-500.0,0.00027397,4]
[328086323,1716843045237,-500.0,0.00027397,4]
[328086325,1716843045246,-500.0,0.00027397,4]
[328086327,1716843045257,-500.0,0.00027397,4]
[328086329,1716843045266,-500.0,0.00027397,4]
[328086331,1716843045273,-505.45848583,0.00027397,4]
[328086332,1716843045279,-500.0,0.00027397,4]
[328086334,1716843045286,-620.66,0.00027397,4]
[328086336,1716843045295,-500.0,0.00027397,4]
[328086338,1716843045303,-500.0,0.00027397,4]
[328086340,1716843045316,-507.21150375,0.00027397,4]
[328086342,1716843045325,-631.58,0.00027397,4]
[328086344,1716843045334,-500.0,0.00027397,4]
[328086346,1716843045344,-500.0,0.00027397,4]
[328086348,1716843045354,-500.0,0.00027397,4]
[328086349,1716843045364,-500.0,0.00027397,4]
[328086352,1716843045374,-500.0,0.00027397,4]
[328086353,1716843045386,-500.0,0.00027397,4]
[328086355,1716843045396,-500.0,0.00027397,4]
[328086357,1716843045406,-648.03304051,0.00027397,4]
[328086360,1716843045416,-500.0,0.00027397,4]
[328086361,1716843045426,-500.0,0.00027397,4]
[328086363,1716843045435,-500.0,0.00027397,4]
[328086365,1716843045445,-500.0,0.00027397,4]
[328086367,1716843045454,-500.0,0.00027397,4]
[328086369,1716843045462,-500.0,0.00027397,4]
[328086371,1716843045472,-500.0,0.00027397,4]
[328086373,1716843045481,-500.0,0.00027397,4]
[328086375,1716843045490,-500.0,0.00027397,4]
[328086377,1716843045499,-500.0,0.00027397,4]
[328086379,1716843045509,-500.0,0.00027397,4]
[328086381,1716843045518,-500.0,0.00027397,4]
[328086383,1716843045528,-500.0,0.00027397,4]
[328086385,1716843045538,-500.0,0.00027397,4]
[328086387,1716843045547,-500.0,0.00027397,4]
[328086389,1716843045557,-500.0,0.00027397,4]
[328086391,1716843045567,-500.0,0.00027397,4]
[328086393,1716843045576,-500.0,0.00027397,4]
[328086395,1716843045586,-500.0,0.00027397,4]
[328086397,1716843045595,-500.0,0.00027397,4]
[328086399,1716843045605,-509.516996,0.00027397,4]
[328086401,1716843045615,-500.0,0.00027397,4]
[328086403,1716843045625,-500.0,0.00027397,4]
[328086405,1716843045635,-455.42826171,0.00027397,4]
[328086407,1716843045644,-500.0,0.00027397,4]
[328086409,1716843045654,-500.0,0.00027397,4]
[328086411,1716843045663,-500.0,0.00027397,4]
[328086413,1716843045673,-522.70359918,0.00027397,4]
[328086415,1716843045682,-500.0,0.00027397,4]
[328086418,1716843045691,-500.0,0.00027397,4]
[328086420,1716843045700,-500.0,0.00027397,4]
[328086422,1716843045709,-500.0,0.00027397,4]
[328086424,1716843045719,-500.0,0.00027397,4]
[328086426,1716843045728,-500.0,0.00027397,4]
[328086428,1716843045737,-529.09710734,0.00027397,4]
[328086430,1716843045747,-500.0,0.00027397,4]
[328086432,1716843045756,-500.0,0.00027397,4]
[328086434,1716843045766,-500.0,0.00027397,4]
[328086436,1716843045775,-500.0,0.00027397,4]
[328086438,1716843045785,-378.35,0.00027397,4]
[328086440,1716843045794,-500.0,0.00027397,4]
[328086442,1716843045804,-500.0,0.00027397,4]
[328086444,1716843045813,-500.0,0.00027397,4]
[328086446,1716843045823,-511.57298036,0.00027397,4]
[328086448,1716843045832,-507.3153219,0.00027397,4]
[328086450,1716843045842,-500.0,0.00027397,4]
[328086452,1716843045851,-500.0,0.00027397,4]
[328086454,1716843045860,-500.0,0.00027397,4]
[328086456,1716843045869,-500.0,0.00027397,4]
[328086458,1716843045879,-1000.0,0.00027397,4]
[328086460,1716843045889,-512.3920953,0.00027397,4]
[328086462,1716843045898,-500.0,0.00027397,4]
[328086464,1716843045908,-151.0,0.00027397,2]
[328086466,1716843045917,-525.95,0.00027397,4]
[328086468,1716843045927,-500.0,0.00027397,4]
[328086470,1716843045937,-379.53012868,0.00027397,4]
[328086472,1716843045947,-502.42224434,0.00027397,4]
[328086474,1716843045956,-500.0,0.00027397,4]
[328086476,1716843045965,-397.42467905,0.00027397,4]
[328086478,1716843045974,-500.0,0.00027397,4]
[328086480,1716843045983,-500.0,0.00027397,4]
[328086482,1716843045992,-500.0,0.00027397,4]
[328086484,1716843046001,-500.0,0.00027397,4]
[328086486,1716843046011,-918.87,0.00027397,4]
[328086488,1716843046020,-500.0,0.00027397,4]
[328086490,1716843046029,-513.34659496,0.00027397,4]
[328086492,1716843046038,-500.0,0.00027397,4]
[328086494,1716843046048,-500.0,0.00027397,4]
[328086496,1716843046057,-500.0,0.00027397,4]
[328086498,1716843046066,-500.0,0.00027397,4]
[328086500,1716843046075,-500.0,0.00027397,4]
[328086502,1716843046084,-509.79411746,0.00027397,4]
[328086504,1716843046093,-500.0,0.00027397,4]
[328086506,1716843046103,-500.0,0.00027397,4]
[328086508,1716843046113,-500.0,0.00027397,4]
[328086510,1716843046122,-500.0,0.00027397,4]
[328086512,1716843046131,-500.0,0.00027397,4]
[328086514,1716843046141,-502.88923421,0.00027397,4]
[328086516,1716843046150,-500.0,0.00027397,4]
[328086518,1716843046159,-500.0,0.00027397,4]
[328086520,1716843046168,-500.0,0.00027397,4]
[328086522,1716843046178,-500.0,0.00027397,4]
[328086524,1716843046187,-500.0,0.00027397,4]
[328086526,1716843046196,-500.0,0.00027397,4]
[328086528,1716843046205,-500.0,0.00027397,4]
[328086530,1716843046214,-500.0,0.00027397,4]
[328086532,1716843046223,-500.0,0.00027397,4]
[328086534,1716843046232,-500.0,0.00027397,4]
[328086536,1716843046240,-500.0,0.00027397,4]
[328086538,1716843046249,-579.64,0.00027397,4]
[328086540,1716843046260,-524.92,0.00027397,4]
[328086542,1716843046269,-510.11190217,0.00027397,4]
[328086544,1716843046278,-500.0,0.00027397,4]
[328086546,1716843046287,-500.0,0.00027397,4]
[328086547,1716843046296,-500.0,0.00027397,4]
[328086550,1716843046306,-500.0,0.00027397,4]
[328086552,1716843046320,-500.0,0.00027397,4]
[328086554,1716843046329,-500.0,0.00027397,4]
[328086556,1716843046338,-500.0,0.00027397,4]
[328086558,1716843046347,-520.665785,0.00027397,2]
[328086559,1716843046356,-500.0,0.00027397,4]
[328086562,1716843046366,-520.665785,0.00027397,2]
[328086563,1716843046375,-500.0,0.00027397,4]
[328086565,1716843046384,-524.46664987,0.00027397,4]
[328086568,1716843046396,-500.0,0.00027397,4]
[328086569,1716843046405,-500.0,0.00027397,4]
[328086571,1716843046414,-520.665785,0.00027397,2]
[328086573,1716843046423,-520.665785,0.00027397,2]
[328086575,1716843046432,-500.0,0.00027397,4]
[328086577,1716843046441,-500.0,0.00027397,4]
[328086579,1716843046450,-500.0,0.00027397,4]
[328086581,1716843046459,-500.0,0.00027397,4]
[328086583,1716843046468,-345.7019459,0.00027397,4]
[328086585,1716843046477,-558.71,0.00027397,4]
[328086587,1716843046486,-500.0,0.00027397,4]
[328086589,1716843046495,-500.0,0.00027397,4]
[328086591,1716843046505,-151.0,0.00027397,2]
[328086593,1716843046514,-151.0,0.00027397,2]
[328086595,1716843046523,-500.0,0.00027397,4]
[328086597,1716843046532,-509.63399136,0.00027397,4]
[328086599,1716843046541,-500.0,0.00027397,4]
[328086601,1716843046550,-1034.59,0.00027397,4]
[328086603,1716843046559,-500.0,0.00027397,4]
[328086605,1716843046568,-324.91033858,0.00027397,4]
[328086607,1716843046577,-500.0,0.00027397,4]
[328086609,1716843046586,-1141.61,0.00027397,4]
[328086611,1716843046596,-540.44,0.00027397,2]
[328086613,1716843046605,-500.0,0.00027397,4]
[328086615,1716843046614,-537.35853667,0.00027397,4]
[328086617,1716843046625,-587.39102683,0.00027397,4]
[328086619,1716843046634,-504.07413927,0.00027397,4]
[328086621,1716843046644,-500.0,0.00027397,4]
[328086624,1716843046654,-582.38078764,0.00027397,4]
[328086625,1716843046664,-500.0,0.00027397,4]
[328086627,1716843046672,-500.0,0.00027397,4]
[328086629,1716843046682,-500.0,0.00027397,4]
[328086632,1716843046691,-500.0,0.00027397,4]
[328086634,1716843046700,-533.49698299,0.00027397,4]
[328086636,1716843046710,-500.0,0.00027397,4]
[328086638,1716843046718,-500.0,0.00027397,4]
[328086639,1716843046727,-500.0,0.00027397,4]
[328086641,1716843046736,-593.51,0.00027397,4]
[328086643,1716843046745,-500.0,0.00027397,4]
[328086645,1716843046755,-500.0,0.00027397,4]
[328086647,1716843046764,-151.0,0.00027397,2]
[328086650,1716843046773,-1608.47,0.00027397,4]
[328086652,1716843046782,-500.0,0.00027397,4]
[328086654,1716843046791,-845.73,0.00027397,4]
[328086656,1716843046800,-500.0,0.00027397,4]
[328086657,1716843046809,-500.0,0.00027397,4]
[328086659,1716843046818,-500.0,0.00027397,4]
[328086661,1716843046827,-500.0,0.00027397,4]
[328086663,1716843046836,-500.0,0.00027397,4]
[328086666,1716843046845,-151.0,0.00027397,2]
[328086667,1716843046855,-500.0,0.00027397,4]
[328086669,1716843046864,-502.13888577,0.00027397,4]
[328086671,1716843046873,-504.01016893,0.00027397,4]
[328086673,1716843046882,-151.0,0.00027397,2]
[328086675,1716843046891,-151.0,0.00027397,2]
[328086677,1716843046900,-500.0,0.00027397,4]
[328086679,1716843046909,-551.55,0.00027397,4]
[328086681,1716843046918,-500.0,0.00027397,4]
[328086684,1716843046929,-500.0,0.00027397,4]
[328086686,1716843046938,-500.0,0.00027397,4]
[328086687,1716843046946,-589.26,0.00027397,4]
[328086689,1716843046955,-500.0,0.00027397,4]
[328086691,1716843046964,-500.0,0.00027397,4]
[328086693,1716843046973,-500.0,0.00027397,4]
[328086695,1716843046982,-500.0,0.00027397,4]
[328086697,1716843046991,-564.88,0.00027397,4]
[328086699,1716843047000,-680.42,0.00027397,4]
[328086701,1716843047011,-500.0,0.00027397,4]
[328086702,1716843047020,-500.0,0.00027397,4]
[328086703,1716843047029,-500.0,0.00027397,4]
[328086704,1716843047038,-500.0,0.00027397,4]
[328086705,1716843047047,-500.0,0.00027397,4]
[328086707,1716843047056,-500.0,0.00027397,4]
[328086709,1716843047065,-250.0,0.00027397,4]
[328086711,1716843047074,-500.0,0.00027397,4]
[328086713,1716843047083,-500.0,0.00027397,4]
[328086715,1716843047092,-510.73505425,0.00027397,4]
[328086717,1716843047101,-500.0,0.00027397,4]
[328086719,1716843047110,-500.0,0.00027397,4]
[328086721,1716843047119,-509.40882253,0.00027397,4]
[328086723,1716843047128,-500.0,0.00027397,4]
[328086725,1716843047137,-500.0,0.00027397,4]
[328086727,1716843047145,-500.0,0.00027397,4]
[328086729,1716843047154,-500.0,0.00027397,4]
[328086731,1716843047164,-500.0,0.00027397,4]
[328086733,1716843047173,-500.0,0.00027397,4]
[328086735,1716843047182,-1698.89,0.00027397,4]
[328086737,1716843047191,-500.0,0.00027397,4]
[328086738,1716843047200,-500.0,0.00027397,4]
[328086739,1716843047209,-500.0,0.00027397,4]
[328086740,1716843047217,-500.0,0.00027397,4]
[328086741,1716843047226,-500.0,0.00027397,4]
[328086742,1716843047235,-502.58573562,0.00027397,4]
[328086743,1716843047243,-500.0,0.00027397,4]
[328086744,1716843047252,-500.0,0.00027397,4]
[328086745,1716843047262,-1240.4,0.00027397,4]
[328086746,1716843047271,-500.0,0.00027397,4]
[328086747,1716843047279,-500.0,0.00027397,4]
[328086748,1716843047289,-500.0,0.00027397,4]
[328086749,1716843047298,-500.0,0.00027397,4]
[328086751,1716843047309,-532.39,0.00027397,4]
[328086753,1716843047320,-500.0,0.00027397,4]
[328086755,1716843047329,-500.0,0.00027397,4]
[328086757,1716843047338,-502.77820957,0.00027397,4]
[328086759,1716843047347,-502.00028482,0.00027397,4]
[328086761,1716843047358,-611.08206207,0.00027397,4]
[328086763,1716843047368,-507.32047796,0.00027397,4]
[328086765,1716843047378,-500.0,0.00027397,4]
[328086768,1716843047389,-517.41349811,0.00027397,4]
[328086769,1716843047399,-500.0,0.00027397,4]
[328086772,1716843047408,-500.0,0.00027397,4]
[328086774,1716843047417,-1487.07,0.00027397,4]
[328086775,1716843047427,-500.0,0.00027397,4]
[328086778,1716843047436,-500.0,0.00027397,4]
[328086779,1716843047445,-500.0,0.00027397,4]
[328086782,1716843047455,-500.0,0.00027397,4]
[328086783,1716843047466,-500.0,0.00027397,4]
[328086786,1716843047476,-500.0,0.00027397,4]
[328086788,1716843047485,-528.48664745,0.00027397,4]